fUST/lending_fUST_20260220
["ID","MTS","AMOUNT","RATE_DAILY","PERIOD"]
[406021252,1771572640211,-168.0,0.00025279,2]
[406021255,1771572640220,-168.0,0.00025342,2]
[406021257,1771572640229,-168.0,0.00025416,2]
[406021259,1771572640239,-168.0,0.00025456,2]
[406021261,1771572640248,-168.0,0.00025516,2]
[406021263,1771572640257,-901.09389095,0.0002599,2]
[406021265,1771572640266,-10924.16122918,0.00026,10]
[406021268,1771572640275,-1000.0,0.00026,30]
[406021271,1771572640284,-342.11033703,0.00026,10]
[406021273,1771572640294,-947.23,0.00026181,2]
[406021275,1771572640303,-6256.58948419,0.00026206,2]
[406021277,1771572640312,-174.49680452,0.00026328,120]
[406021279,1771572640322,-543.56754083,0.0002641,7]
[406021282,1771572640331,-200.0,0.0002654,14]
[406021284,1771572640341,-265.93805493,0.00026621,120]
[406021286,1771572640350,-266.51409479,0.00026621,120]
[406021288,1771572640359,-218.99709184,0.00026652,120]
[406021290,1771572640370,-1267.39,0.000267,2]
[406021292,1771572640379,-719.94,0.000267,14]
[406021294,1771572640388,-427.0,0.00026852,2]
[406021297,1771572640398,-2352.32433203,0.00027,2]
[406021299,1771572640407,-151.0,0.00027397,2]
[406021301,1771572640416,-151.0,0.00027397,2]
[406021303,1771572640426,-242.576706,0.00027397,2]
[406021305,1771572640435,-151.0,0.00027397,2]
[406021307,1771572640445,-151.839455,0.00027397,2]
[406021309,1771572640454,-158.49561439,0.00027397,5]
[406021311,1771572640463,-500.0,0.00027397,2]
[406021313,1771572640472,-296.38940628,0.00027397,5]
[406021315,1771572640482,-150.0,0.00027397,5]
[406021317,1771572640491,-864.0,0.00027527,30]
[406021319,1771572640500,-326.65,0.000276,7]
[406021321,1771572640510,-500.0,0.00027647,7]
[406021323,1771572640519,-500.0,0.00027773,7]
[406021325,1771572640528,-190.11685391,0.00027857,15]
[406021326,1771572640538,-250.0,0.00027945,5]
[406021329,1771572640547,-437.0584722,0.00028,30]
[406021331,1771572640557,-743.73449086,0.00028,3]
[406021333,1771572640566,-743.73449086,0.00028,3]
[406021335,1771572640575,-1000.0,0.00028,5]
[406021337,1771572640585,-179.82017982,0.00028399,2]
[406021339,1771572640594,-487.05351552,0.00028493,5]
[406021341,1771572640603,-350.0,0.00028493,5]
[406021343,1771572640613,-47261.65666469,0.00028806,2]
[406021344,1771572640622,-173.31740563,0.00028822,5]
[406021347,1771572640631,-636.63730899,0.00028888,2]
[406021348,1771572640641,-500.0,0.00028941,2]
[406021351,1771572640650,-324.0,0.00029,2]
[406021353,1771572640659,-895.36893913,0.00029,2]
[406021355,1771572640669,-151.0,0.00029,12]
[406021356,1771572640677,-259.22494329,0.00029041,5]
[406021359,1771572640687,-253.73841471,0.00029074,5]
[406021361,1771572640696,-1267.39,0.000291,2]
[406021363,1771572640705,-6256.58948419,0.00029545,2]
[406021364,1771572640714,-190.11685391,0.00029713,20]
[406021367,1771572640723,-151.0,0.000298,16]
[406021369,1771572640732,-200.06,0.00029964,23]
[406021379,1771572640826,-688.04,0.0003,14]
[406021381,1771572640837,-1059.2,0.0003,30]
[406021384,1771572640847,-20000.0,0.0003,4]
[406021386,1771572640858,-164.0,0.0003,14]
[406021388,1771572640867,-10000.0,0.00030137,120]
[406021390,1771572640878,-894.65107,0.00030137,2]
[406021392,1771572640888,-1000.0,0.00030279,30]
[406021394,1771572640901,-161.18070062,0.00030356,39]
[406021396,1771572640910,-500.0,0.00030485,2]
[406021398,1771572640919,-151.0,0.000306,16]
[406021400,1771572640930,-151.0,0.000306,19]
[406021402,1771572640941,-326.65,0.000308,7]
[406021404,1771572640951,-1059.2,0.000309,30]
[406021406,1771572640961,-18810.39231152,0.00031,7]
[406021408,1771572640977,-18810.39231152,0.00031,7]
[406021410,1771572640987,-200.75443402,0.00031,2]
[406021412,1771572640998,-743.73449086,0.00031,7]
[406021414,1771572641007,-151.0,0.000314,16]
[406021416,1771572641016,-151.0,0.000314,13]
[406021418,1771572641025,-190.11685391,0.0003157,24]
[406021420,1771572641034,-1059.2,0.000318,30]
[406021422,1771572641043,-10230.69,0.00031982,120]
[406021424,1771572641052,-5589.98996552,0.00032,2]
[406021426,1771572641061,-500.0,0.00032029,2]
[406021428,1771572641071,-151.0,0.000322,17]
[406021430,1771572641080,-151.0,0.000322,10]
[406021432,1771572641089,-1267.39,0.000324,2]
[406021434,1771572641099,-787.95475078,0.000325,19]
[406021436,1771572641108,-18187.62893107,0.00032547,2]
[406021438,1771572641117,-1092.72739615,0.00032547,2]
[406021440,1771572641126,-490335.09185986,0.00032547,2]
[406021442,1771572641140,-2745.99460462,0.00032547,2]
[406021444,1771572641151,-11705.89482807,0.00032547,2]
[406021447,1771572641162,-456.04079246,0.00032547,2]
[406021449,1771572641174,-2752.89783859,0.00032547,2]
[406021451,1771572641185,-1023.714787,0.00032547,2]
[406021737,1771572643826,-491.73465658,0.00019428,2]
[406021761,1771572644060,-434.31997922,0.00019428,2]
[406021763,1771572644070,-1904.92,0.0002999,10]
[406021765,1771572644087,-1728.7844125,0.00032547,2]
[406021767,1771572644097,-220.67213993,0.00032547,30]
[406021972,1771572646550,-841.5,0.00032547,30]
[406021973,1771572646559,-9852.96066457,0.000326,2]
[406021974,1771572646569,-1059.2,0.000327,120]
[406021975,1771572646578,-657.32176065,0.00032776,2]
[406021976,1771572646587,-2500.0,0.000328,4]
[406021977,1771572646596,-166.0,0.000328,120]
[406021978,1771572646606,-500.0,0.00032876,2]
[406021979,1771572646615,-2037.4384571,0.00032876,19]
[406021980,1771572646624,-500.65746371,0.00032876,19]
[406021981,1771572646633,-635.92852727,0.00032876,19]
[406021982,1771572646642,-500.0,0.00032876,19]
[406021983,1771572646651,-502.75123965,0.00032876,19]
[406021984,1771572646660,-608.27999461,0.00032876,19]
[406021985,1771572646669,-523.54542059,0.00032876,19]
[406021986,1771572646678,-2345.03,0.00032876,19]
[406021987,1771572646687,-156.5096066,0.00032876,19]
[406021988,1771572646696,-170.67082849,0.00032876,19]
[406021989,1771572646705,-500.0,0.00032876,19]
[406021990,1771572646713,-160.72785019,0.00032876,19]
[406021991,1771572646723,-500.0,0.00032876,19]
[406021992,1771572646731,-500.0,0.00032876,19]
[406021993,1771572646740,-500.0,0.00032876,19]
[406021994,1771572646749,-505.90135718,0.00032876,7]
[406021995,1771572646758,-500.0,0.00032876,7]
[406021996,1771572646767,-500.0,0.00032876,19]
[406021997,1771572646776,-500.0,0.00032876,19]
[406021998,1771572646785,-344.51296489,0.00032876,19]
[406021999,1771572646793,-510.22182677,0.00032876,19]
[406022000,1771572646802,-158.24191389,0.00032876,19]
[406022001,1771572646811,-500.0,0.00032876,19]
[406022002,1771572646820,-237.71024028,0.00032876,19]
[406022003,1771572646829,-500.0,0.00032876,19]
[406022004,1771572646837,-559.29678918,0.00032876,19]
[406022005,1771572646846,-501.30217861,0.00032876,8]
[406022006,1771572646855,-1000.0,0.00032876,2]
[406022007,1771572646864,-522.75197184,0.00032876,19]
[406022008,1771572646872,-504.1699916,0.00032876,19]
[406022009,1771572646881,-500.0,0.00032876,19]
[406022010,1771572646891,-584.07459514,0.00032876,19]
[406022011,1771572646904,-500.0,0.00032876,19]
[406022012,1771572646913,-500.0,0.00032876,19]
[406022013,1771572646922,-612.08454686,0.00032876,19]
[406022014,1771572646930,-152.48359842,0.00032876,19]
[406022015,1771572646939,-227.89334938,0.00032876,19]
[406022016,1771572646950,-151.0505191,0.00032876,19]
[406022017,1771572646959,-615.80554745,0.00032876,19]
[406022018,1771572646969,-629.15668226,0.00032876,19]
[406022019,1771572646978,-517.17803459,0.00032876,19]
[406022020,1771572646987,-407.09405736,0.00032876,19]
[406022021,1771572646996,-964.7,0.00032876,19]
[406022022,1771572647005,-186.40096723,0.00032876,19]
[406022023,1771572647014,-576.48,0.00032876,19]
[406022024,1771572647023,-500.0,0.00032876,19]
[406022025,1771572647032,-201.15420965,0.00032876,19]
[406039750,1771573831710,-463.43612956,0.00016688,120]
[406039752,1771573831719,-311.08178398,0.00016857,120]
[406039754,1771573831730,-1703.48550414,0.00016857,120]
[406039873,1771573845769,-213.67428539,0.00016757,2]
[406039874,1771573845779,-160.98,0.00018639,2]
[406039875,1771573845790,-160.69251955,0.00019684,2]
[406039876,1771573845800,-160.69251955,0.00024605,2]
[406039877,1771573845809,-743.73449086,0.00026108,2]
[406039878,1771573845819,-19.60618465,0.00027397,5]
[406039913,1771575038048,-2428.3113796,0.00011664,3]
[406039914,1771575038099,-336.00839522,0.00011664,3]
[406039937,1771575040498,-605.23131183,0.00011664,3]
[406039938,1771575040508,-2538.39616931,0.00011782,3]
[406039939,1771575040518,-1487.29380937,0.00011901,3]
[406039940,1771575040527,-150.0,0.00011961,2]
[406039941,1771575040538,-319.07870949,0.00011961,2]
[406039942,1771575040552,-269.92129051,0.00011961,2]
[406039943,1771575040562,-457.06347701,0.00013357,2]
[406039948,1771575046166,-243.93652299,0.00013357,2]
[406039949,1771575046275,-300.0,0.00013698,2]
[406039950,1771575046293,-500.0,0.00013699,2]
[406039951,1771575046302,-500.0,0.00013699,2]
[406039952,1771575046311,-500.0,0.00013699,2]
[406039953,1771575046321,-284.82317169,0.00014247,2]
[406039954,1771575046330,-895.38945896,0.00014247,2]
[406039955,1771575046340,-750.29312833,0.00014247,2]
[406039956,1771575046349,-284.0331311,0.00015,2]
[406039957,1771575046358,-160.39,0.00018,2]
[406039958,1771575046367,-160.69251955,0.000198,2]
[406039959,1771575046377,-743.73449086,0.00022254,2]
[406039960,1771575046386,-160.88706599,0.0002459,2]
[406039961,1771575046395,-500.0,0.00026942,7]
[406039962,1771575046404,-150.0,0.00027397,5]
[406039963,1771575046414,-1459.4357567,0.00027762,120]
[406039964,1771575046424,-250.0,0.00027945,5]
[406039965,1771575046433,-350.0,0.00028493,5]
[406039966,1771575046443,-1000.0,0.00028978,30]
[406039967,1771575046453,-400.71261736,0.00029041,5]
[406039968,1771575046463,-226.65280761,0.00029659,4]
[406039969,1771575046472,-809.56276493,0.0003,30]
[406039986,1771575047013,-210.41723507,0.0003,30]
[406039987,1771575047023,-283.77177865,0.00030355,2]
[406040017,1771576232186,-937.47389539,9.899e-05,3]
[406040018,1771576232196,-300.0,9.999e-05,2]
[406040019,1771576232206,-300.0,9.999e-05,2]
[406040020,1771576232216,-300.0,9.999e-05,2]
[406040021,1771576232226,-1200.0,9.999e-05,2]
[406040022,1771576232236,-560.0,9.999e-05,2]
[406040023,1771576232246,-1933.71102165,0.0001,2]
[406040024,1771576232256,-290.4759511,0.0001,2]
[406040025,1771576232266,-1000.0,0.0001,2]
[406040026,1771576232276,-643.97913186,0.0001,2]
[406040050,1771576238247,-412.47389539,9.9e-05,3]
[406040051,1771576238258,-2815.34169173,0.0001,2]
[406040052,1771576238268,-150.0,0.00010709,2]
[406040053,1771576238278,-292.0,0.00010999,2]
[406040054,1771576238288,-937.47389539,0.00011417,3]
[406040055,1771576238298,-177.0,0.00012709,2]
[406040056,1771576238308,-252.22097249,0.00013213,2]
[406040057,1771576238317,-500.0,0.00013269,2]
[406040058,1771576238327,-500.0,0.00013269,2]
[406040059,1771576238337,-500.0,0.00013269,2]
[406040060,1771576238347,-500.0,0.00013269,2]
[406040061,1771576238357,-500.0,0.00013269,2]
[406040062,1771576238366,-500.0,0.00013269,2]
[406040063,1771576238376,-364.86465663,0.00013269,2]
[406040064,1771576238385,-500.0,0.00013269,2]
[406040065,1771576238395,-500.0,0.00013269,2]
[406040066,1771576238404,-602.96885549,0.00013269,2]
[406040067,1771576238418,-500.0,0.00013269,2]
[406040068,1771576238428,-500.0,0.00013269,2]
[406040069,1771576238438,-500.0,0.00013269,2]
[406040070,1771576238447,-500.0,0.00013269,2]
[406040071,1771576238457,-542.78590098,0.00013269,2]
[406040072,1771576238466,-500.0,0.00013269,2]
[406040073,1771576238476,-500.0,0.00013269,2]
[406040074,1771576238485,-500.0,0.00013269,2]
[406040075,1771576238495,-500.0,0.00013269,2]
[406040076,1771576238504,-500.0,0.00013269,2]
[406040077,1771576238514,-550.43771747,0.00013269,2]
[406040078,1771576238523,-367.86502272,0.00013269,2]
[406040079,1771576238532,-50000.0,0.0001327,2]
[406040080,1771576238542,-427.71762635,0.00013273,2]
[406040081,1771576238552,-500.0,0.00013273,2]
[406040082,1771576238561,-500.0,0.00013273,2]
[406040083,1771576238571,-500.0,0.00013273,2]
[406040084,1771576238580,-300.0,0.00013673,2]
[406040085,1771576238590,-500.0,0.00013698,2]
[406040086,1771576238599,-500.0,0.00013698,2]
[406040087,1771576238609,-173.846092,0.00013699,2]
[406040088,1771576238618,-284.8665181,0.00013699,2]
[406040089,1771576238627,-200.0,0.00013699,2]
[406040090,1771576238636,-503.99085965,0.00013699,2]
[406040091,1771576238646,-500.0,0.00013699,2]
[406040092,1771576238655,-500.0,0.00013699,2]
[406040093,1771576238664,-500.0,0.00013699,2]
[406040094,1771576238673,-500.0,0.00013699,2]
[406040095,1771576238683,-500.0,0.00013699,2]
[406040096,1771576238692,-265.3854239,0.00013699,2]
[406040097,1771576238701,-500.0,0.00013699,2]
[406040098,1771576238710,-500.0,0.00013699,2]
[406040099,1771576238719,-500.0,0.00013699,2]
[406040100,1771576238729,-500.0,0.00013699,2]
[406040101,1771576238739,-500.0,0.00013699,2]
[406040102,1771576238752,-500.0,0.00013699,2]
[406040103,1771576238762,-500.0,0.00013699,2]
[406040104,1771576238771,-500.0,0.00013699,2]
[406040105,1771576238781,-500.0,0.00013699,2]
[406040106,1771576238790,-500.0,0.00013699,2]
[406040107,1771576238800,-500.0,0.00013699,2]
[406040108,1771576238809,-1000.0,0.00013821,2]
[406040109,1771576238819,-1000.0,0.00013821,2]
[406040110,1771576238828,-500.0,0.00013973,2]
[406040111,1771576238838,-600.0,0.00014221,2]
[406040112,1771576238847,-680.88266684,0.00014247,2]
[406040113,1771576238856,-1000.0,0.00014247,2]
[406040114,1771576238866,-1500.0,0.00014368,2]
[406040115,1771576238875,-1500.0,0.00014368,2]
[406040116,1771576238884,-1032.13746,0.00014607,2]
[406040117,1771576238894,-320.0,0.00014628,2]
[406040118,1771576238903,-1747.13369748,0.00014683,2]
[406040119,1771576238913,-204.0,0.00014709,2]
[406040120,1771576238923,-900.0,0.00014768,2]
[406040121,1771576238933,-1107.47987705,0.00014795,2]
[406040122,1771576238943,-500.0,0.00014916,2]
[406040123,1771576238952,-500.0,0.00014916,2]
[406040124,1771576238961,-504.17981725,0.00014916,2]
[406040125,1771576238971,-2000.0,0.00014916,2]
[406040126,1771576238981,-2000.0,0.00014916,2]
[406040127,1771576238990,-1032.13746,0.00015222,2]
[406040128,1771576238999,-500.0,0.00015464,2]
[406040129,1771576239008,-2500.0,0.00015464,2]
[406040130,1771576239018,-2500.0,0.00015464,2]
[406040131,1771576239027,-1032.13746,0.00015837,2]
[406040132,1771576239036,-172.01930995,0.00015837,2]
[406040133,1771576239046,-500.0,0.00015837,2]
[406040134,1771576239058,-500.0,0.00015892,2]
[406040135,1771576239067,-500.0,0.00015947,2]
[406040136,1771576239077,-500.0,0.00016001,2]
[406040137,1771576239087,-3000.0,0.00016012,2]
[406040138,1771576239099,-1046.48398893,0.00016012,2]
[406040139,1771576239108,-500.0,0.00016056,2]
[406040140,1771576239119,-500.0,0.00016111,2]
[406040141,1771576239128,-500.0,0.00016166,2]
[406040142,1771576239138,-168.96452558,0.00016221,2]
[406040143,1771576239147,-1032.13746,0.00016452,2]
[406040144,1771576239156,-3500.0,0.0001656,2]
[406040145,1771576239166,-231.0,0.00016709,2]
[406040146,1771576239175,-93064.46546838,0.0001699,2]
[406040147,1771576239184,-373.8824408,0.00017,2]
[406040148,1771576239193,-1032.13746,0.00017067,2]
[406040149,1771576239203,-2667.49584406,0.00017108,2]
[406040150,1771576239212,-3128.29474209,0.00017183,2]
[406040151,1771576239222,-1032.13746,0.00017682,2]
[406040152,1771576239231,-645810.63881812,0.00018,2]
[406040153,1771576239240,-258.0,0.00018709,2]
[406040154,1771576239250,-358.041,0.00019262,2]
[406040155,1771576239260,-198.035,0.00019262,2]
[406040156,1771576239270,-426.0,0.00019262,2]
[406040157,1771576239280,-359.97,0.000193,2]
[406040158,1771576239289,-760.43,0.000193,2]
[406040159,1771576239299,-159.94089833,0.00019951,2]
[406040160,1771576239308,-4076.4446778,0.00020118,2]
[406040161,1771576239318,-173.846092,0.00020548,2]
[406040162,1771576239327,-3128.29474209,0.00021196,2]
[406040163,1771576239336,-181.0,0.00022262,2]
[406040164,1771576239345,-195.99,0.000223,7]
[406040165,1771576239354,-4076.4446778,0.00022576,2]
[406040166,1771576239364,-500.0,0.00023083,2]
[406040167,1771576239374,-613.49372077,0.00023106,2]
[406040168,1771576239384,-293.85068442,0.00023182,2]
[406040169,1771576239394,-500.0,0.00023262,2]
[406040170,1771576239403,-500.0,0.00023457,2]
[406040171,1771576239413,-500.0,0.00023463,2]
[406040172,1771576239422,-500.0,0.00023557,2]
[406040173,1771576239432,-500.0,0.00024077,2]
[406040174,1771576239441,-500.0,0.00024239,2]
[406040175,1771576239450,-500.0,0.00024352,2]
[406040176,1771576239459,-500.0,0.00024379,2]
[406040177,1771576239469,-359.97,0.000244,14]
[406040178,1771576239479,-760.43,0.000244,2]
[406040179,1771576239488,-500.0,0.00024419,2]
[406040180,1771576239498,-500.0,0.00024557,2]
[406040181,1771576239507,-309.182,0.00024605,7]
[406040182,1771576239517,-500.0,0.00024668,2]
[406040183,1771576239526,-500.0,0.00024706,2]
[406040184,1771576239536,-195.99,0.000248,7]
[406040185,1771576239545,-500.0,0.0002481,2]
[406040186,1771576239555,-500.0,0.00024841,2]
[406040187,1771576239564,-332009.33510473,0.000249,2]
[406040188,1771576239578,-10653.1402446,0.000249,2]
[406040189,1771576239589,-4248.32795475,0.000249,2]
[406040190,1771576239600,-4203.85449838,0.000249,2]
[406040191,1771576239611,-107484.71835454,0.000249,2]
[406040192,1771576239620,-500.0,0.00025023,7]
[406040193,1771576239629,-4076.4446778,0.00025033,2]
[406040194,1771576239638,-500.0,0.00025062,7]
[406040195,1771576239648,-500.0,0.00025074,7]
[406040196,1771576239657,-500.0,0.00025166,7]
[406040197,1771576239666,-3128.29474209,0.00025209,2]
[406040198,1771576239675,-500.0,0.00025252,7]
[406040199,1771576239686,-181.0,0.00025262,2]
[406040200,1771576239695,-500.0,0.00025361,7]
[406040201,1771576239705,-500.0,0.00025591,7]
[406040202,1771576239714,-500.0,0.00025637,7]
[406040203,1771576239724,-500.0,0.00025643,7]
[406040204,1771576239734,-500.0,0.00025756,7]
[406040205,1771576239744,-743.73449086,0.00025759,7]
[406040206,1771576239753,-500.0,0.00025776,7]
[406040207,1771576239764,-228.14022468,0.00025776,7]
[406040208,1771576239783,-500.0,0.00025805,7]
[406040209,1771576239794,-359.97,0.000259,14]
[406040210,1771576239806,-760.43,0.000259,2]
[406040211,1771576239817,-525.44281669,0.0002599,7]
[406040212,1771576239828,-500.0,0.00026167,7]
[406040213,1771576239839,-195.99,0.000263,7]
[406040214,1771576239848,-179.83814567,0.00026446,2]
[406040215,1771576239859,-500.0,0.00026521,7]
[406040216,1771576239868,-631.55763204,0.00026537,7]
[406040217,1771576239878,-500.0,0.0002669,7]
[406040218,1771576239888,-487.0,0.00026849,2]
[406040219,1771576239898,-487.0,0.00026849,2]
[406040220,1771576239908,-487.0,0.00026849,2]
[406040221,1771576239919,-487.0,0.00026849,2]
[406040222,1771576239929,-487.0,0.00026849,2]
[406040223,1771576239939,-487.0,0.00026849,2]
[406040224,1771576239950,-487.0,0.00026849,2]
[406040225,1771576239960,-487.0,0.00026849,2]
[406040226,1771576239970,-487.0,0.00026849,2]
[406040227,1771576239979,-487.0,0.00026849,2]
[406040228,1771576239989,-487.0,0.00026849,2]
[406040229,1771576239999,-487.0,0.00026849,2]
[406040230,1771576240009,-487.0,0.00026849,2]
[406040231,1771576240019,-487.0,0.00026849,2]
[406040232,1771576240029,-487.0,0.00026849,2]
[406040233,1771576240040,-487.0,0.00026849,2]
[406040234,1771576240055,-657.03,0.00026849,2]
[406040235,1771576240066,-500.0,0.00027372,7]
[406040236,1771576240076,-500.0,0.00027443,7]
[406040237,1771576240086,-500.0,0.00027481,7]
[406040238,1771576240096,-4076.4446778,0.00027491,2]
[406040239,1771576240107,-500.0,0.00027685,7]
[406040240,1771576240119,-743.73449086,0.00027721,2]
[406040241,1771576240130,-500.0,0.00027773,7]
[406040243,1771576240140,-500.0,0.00027875,7]
[406040244,1771576240150,-359.97,0.00028,14]
[406040245,1771576240161,-784.0,0.000283,2]
[406040246,1771576240171,-760.43,0.000283,2]
[406040247,1771576240180,-3128.29474209,0.00029222,2]
[406040248,1771576240190,-8867.66459814,0.00029305,2]
[406040249,1771576240199,-195.99,0.000294,7]
[406040250,1771576240208,-283811.38256228,0.00029403,2]
[406040282,1771576246177,-1248.0,0.00023714,7]
[406040283,1771576246187,-28053.96231903,0.00029403,2]
[406040310,1771576680725,221.16,3.436e-05,2]
[406040417,1771577432212,-338.925,0.00013009,2]
[406040421,1771577432241,-302.92663264,0.00013009,2]
[406040423,1771577432251,-500.0,0.00013273,2]
[406040425,1771577432261,-300.0,0.00013697,2]
[406040427,1771577432270,-500.0,0.00013698,2]
[406040429,1771577432279,-500.0,0.00013698,2]
[406040431,1771577432287,-500.0,0.00013698,2]
[406040433,1771577432296,-500.0,0.00013698,2]
[406040435,1771577432305,-66.20970616,0.00013698,2]
[406040437,1771577432316,-433.79029384,0.00013698,2]
[406040439,1771577432324,-1000.0,0.00013821,2]
[406040441,1771577432334,-1500.0,0.00014368,2]
[406040443,1771577432343,-700.91287985,0.00014916,2]
[406040445,1771577432353,-5621.79615608,0.00014916,2]
[406040447,1771577432362,-420.0,0.0001501,2]
[406040449,1771577432371,-287.0,0.0001645,2]
[406040451,1771577432380,-943.99368887,0.00018552,2]
[406040452,1771577432389,-1800.0,0.0002,2]
[406040454,1771577432399,-2173.0,0.00020849,2]
[406040456,1771577432408,-743.73449086,0.00022241,2]
[406040458,1771577432417,-500.0,0.0002479,2]
[406040460,1771577432426,-281.0,0.000249,2]
[406040462,1771577432435,-162.68,0.000251,7]
[406040464,1771577432444,-168.095769,0.00026406,2]
[406040466,1771577432453,-290.47911841,0.00026849,2]
[406040468,1771577432462,-331.97613533,0.00026849,2]
[406040470,1771577432471,-235.96957304,0.00026932,2]
[406040472,1771577432480,-167.89279401,0.00027353,2]
[406040474,1771577432488,-500.0,0.00027397,2]
[406040476,1771577432497,-302.20702922,0.00027544,2]
[406040478,1771577432506,-500.0,0.00027607,7]
[406040480,1771577432515,-150.3340744,0.00028159,7]
[406040482,1771577432525,-266.21659009,0.00028199,2]
[406040484,1771577432539,-479.18986216,0.00028199,2]
[406040486,1771577432548,-851.89308828,0.00028199,2]
[406040488,1771577432557,-1564.14737105,0.00028913,2]
[406040490,1771577432567,-455.88542839,0.00029012,2]
[406040492,1771577432577,-4439.91903757,0.00029014,2]
[406040494,1771577432587,-516.08,0.00029303,2]
[406040496,1771577432597,-491.73465658,0.00029303,2]
[406040498,1771577432609,-247.346,0.00029392,22]
[406040500,1771577432619,-2760.41,0.00029393,10]
[406040502,1771577432628,-257.5055159,0.00029402,2]
[406040504,1771577432637,-22940.30852322,0.00029403,2]
[406040636,1771577446293,-1359.58634158,0.00029303,2]
[406040637,1771577446303,-1702.28009644,0.00029393,10]
[406040661,1771578100503,-150.0,0.00012497,2]
[406040662,1771578100528,-150.0,0.00012623,3]
[406040663,1771578100605,-12.61996784,0.00012814,2]
[406040664,1771578129763,-300.0,0.00012814,2]
[406040813,1771578638599,-150.0,0.00012814,2]
[406040814,1771578638609,-205.16439475,0.00013273,2]
[406040815,1771578638618,-303.51159369,0.00013273,2]
[406040816,1771578638627,-380.3334067,0.00013699,2]
[406040817,1771578638636,-250.69702422,0.00014814,2]
[406040818,1771578638765,-1684.00014908,0.0002,14]
[406040819,1771578638785,-15.99985092,0.0002,14]
[406040820,1771578638795,-292.62719929,0.00025514,2]
[406040821,1771578638804,-500.0,0.00025586,7]
[406040822,1771578638813,-671.35909858,0.00026381,7]
[406040823,1771578638823,-3270.0,0.000265,2]
[406040824,1771578638832,-300.0,0.00026574,2]
[406040825,1771578638841,-1160.68971746,0.00026695,2]
[406040826,1771578638853,-521.74263264,0.00026695,2]
[406040854,1771578640868,-580.17429691,0.00026695,2]
[406040873,1771578643974,-3121.45985929,0.00026695,2]
[406040874,1771578643984,-221.00222278,0.00026857,2]
[406040875,1771578643993,-600.73496131,0.00026857,2]
[406040876,1771578644003,-743.73449086,0.00026973,2]
[406040877,1771578644013,-500.0,0.00027397,2]
[406040878,1771578644022,-179.070258,0.00027453,2]
[406040879,1771578644031,-500.0,0.00027504,7]
[406040880,1771578644040,-224.06287426,0.00028537,14]
[406040881,1771578644050,-179.070258,0.00028609,2]
[406040882,1771578644059,-420.0,0.00028742,2]
[406040883,1771578644068,-839.78,0.0002939,120]
[406040884,1771578644077,-445.39228964,0.00029391,19]
[406040885,1771578644093,-54.60771036,0.00029391,19]
[406040886,1771578644103,-442.47314645,0.00029391,19]
[406040903,1771578646440,-57.52685355,0.00029391,19]
[406040904,1771578646451,-197.876,0.00029392,22]
[406040905,1771578646461,-500.0,0.00029392,2]
[406040906,1771578646471,-500.0,0.00029392,2]
[406040907,1771578646481,-226.97621122,0.00029392,2]
[406040908,1771578646491,-500.0,0.00029392,2]
[406040909,1771578646500,-500.0,0.00029392,2]
[406040910,1771578646511,-500.0,0.00029392,2]
[406040911,1771578646520,-295.38566399,0.00029392,2]
[406040912,1771578646530,-500.0,0.00029392,2]
[406040913,1771578646539,-500.0,0.00029392,2]
[406040914,1771578646548,-415.84288285,0.00029392,2]
[406040915,1771578646560,-500.0,0.00029392,2]
[406040916,1771578646570,-500.0,0.00029392,2]